bitfinex/quotes_SOLUSD_20251007
["timestamp","ask_amount","ask_price","bid_price","bid_amount"]
[1759857037478,7.09484168,223.96,223.89,0.24231485]
[1759857037479,3.07266371,223.91,223.89,0.24231485]
[1759857037688,3.33217797,223.9,223.89,0.24231485]
[1759857037869,6.40484168,223.9,223.89,24.23879006]
[1759857038072,7.09484168,223.9,223.89,24.23879006]
[1759857038388,7.09484168,223.9,223.89,13.36231485]
[1759857038686,10.09654611,223.9,223.89,31.96231485]
[1759857039083,7.09484168,223.9,223.89,31.96231485]
[1759857039880,27.89484168,223.9,223.89,31.96231485]
[1759857040682,4.02217797,223.9,223.89,31.96231485]
[1759857040882,14.56372468,223.9,223.89,0.24231485]
[1759857041691,6.99478139,223.9,223.89,0.24231485]
[1759857041897,7.06484168,223.9,223.89,0.24231485]
[1759857042775,3.99217797,223.9,223.89,0.24231485]
[1759857042994,7.06484168,223.9,223.89,0.24231485]
[1759857043172,24.13217797,223.9,223.89,11.11879006]
[1759857043892,3.33217797,223.9,223.89,11.11879006]
[1759857044189,24.13217797,223.9,223.89,0.24231485]
[1759857044368,10.0672663,223.9,223.89,0.24231485]
[1759857044776,7.06484168,223.9,223.89,0.24231485]
[1759857047094,8.96079884,223.9,223.89,0.24231485]
[1759857047477,8.30079884,223.9,223.89,0.24231485]
[1759857047681,13.42707842,223.9,223.89,0.24231485]
[1759857049121,11.46088217,223.9,223.89,0.24231485]
[1759857049283,13.42707842,223.9,223.89,0.24231485]
[1759857051498,8.96079884,223.9,223.89,0.24231485]
[1759857051691,11.46088217,223.9,223.89,0.24231485]
[1759857051894,10.4246538,223.9,223.89,0.24231485]
[1759857052096,8.96079884,223.9,223.89,0.24231485]
[1759857052305,5.29837422,223.9,223.89,0.24231485]
[1759857052606,5.2994339,223.9,223.89,0.24231485]
[1759857052904,8.30185852,223.9,223.89,0.24231485]
[1759857053718,13.4281381,223.9,223.89,0.24231485]
[1759857054110,8.96185852,223.9,223.89,0.24231485]
[1759857054496,10.42571348,223.9,223.89,0.24231485]
[1759857054821,9.76571348,223.9,223.89,0.24231485]
[1759857054994,12.7681381,223.9,223.89,0.24231485]
[1759857055322,13.4281381,223.9,223.89,0.24231485]
[1759857055823,12.7681381,223.9,223.89,0.24231485]
[1759857056028,13.4281381,223.9,223.89,0.24231485]
[1759857056591,12.7681381,223.9,223.89,0.24231485]
[1759857056814,8.30185852,223.9,223.89,0.24231485]
[1759857057123,5.2994339,223.9,223.89,0.24231485]
[1759857057697,10.48571348,223.9,223.89,0.24231485]
[1759857057901,13.4881381,223.9,223.89,0.24231485]
[1759857058098,12.7681381,223.9,223.89,0.24231485]
[1759857058294,13.4881381,223.9,223.89,0.24231485]
[1759857060085,20.8,223.87,223.79,0.81]
[1759857060289,1.96619625,223.8,223.79,11.68647521]
[1759857060688,20.8,223.83,223.8,10.87647521]
[1759857060886,1.96619625,223.81,223.8,11.58647521]
[1759857061704,20.8,223.87,223.8,16.05472907]
[1759857061900,6.32888946,223.86,223.82,10.87647521]
[1759857062104,3.33083153,223.85,223.84,10.87647521]
[1759857062295,3.33037377,223.85,223.84,11.58647521]
[1759857062614,20.8,223.85,223.84,10.87647521]
[1759857062819,20.8,223.85,223.84,11.58647521]
[1759857062990,11.16381399,223.94,223.84,11.58647521]
[1759857062991,0.72,223.92,223.84,11.58647521]
[1759857063192,1.96619625,223.88,223.86,10.87647521]
[1759857063495,3.33001093,223.91,223.83,31.8]
[1759857063496,1.96619625,223.91,223.83,31.8]
[1759857063801,3.32987223,223.9,223.86,10.87647521]
[1759857064129,22.76619625,223.92,223.88,10.87647521]
[1759857064297,20.8,223.89,223.86,10.87647521]
[1759857064618,20.8,223.89,223.88,10.87647521]
[1759857064917,20.8,223.91,223.88,11.58647521]
[1759857065111,3.32964415,223.9,223.88,11.58647521]
[1759857065723,3.32964415,223.9,223.88,16.05301665]
[1759857066210,22.76619625,223.91,223.88,16.05301665]
[1759857066407,20.8,223.87,223.82,10.87647521]
[1759857066616,3.32969431,223.86,223.82,10.87647521]
[1759857066820,5.29589056,223.86,223.82,11.58647521]
[1759857067013,1.96619625,223.86,223.84,10.87647521]
[1759857067715,1.96619625,223.88,223.86,10.87647521]
[1759857068015,3.33004793,223.87,223.86,10.87647521]
[1759857068893,3.33004793,223.87,223.86,16.05355284]
[1759857069096,2.33078412,223.92,223.86,48.03355284]
[1759857069295,3.32981465,223.91,223.88,10.87647521]
[1759857069508,24.12981465,223.9,223.89,11.58647521]
[1759857070133,3.32981465,223.9,223.87,4.46687809]
[1759857070297,5.2960109,223.9,223.88,10.87647521]
[1759857070496,3.32981465,223.89,223.88,10.87647521]
[1759857071913,20.8,223.86,223.82,0.71]
[1759857072123,22.76619625,223.86,223.83,47.32407291]
[1759857072307,22.76619625,223.86,223.83,48.03407291]
[1759857072509,1.96619625,223.85,223.83,42.85647521]
[1759857073218,20.8,223.85,223.79,10.97647521]
[1759857073406,20.8,223.81,223.8,31.98]
[1759857073605,1.96619625,223.83,223.81,10.87647521]
[1759857073924,1.96619625,223.84,223.81,11.58647521]
[1759857074096,1.96619625,223.84,223.83,10.87647521]
[1759857074514,5.29731203,223.84,223.83,10.87647521]
[1759857074891,26.09731203,223.84,223.83,10.87647521]
[1759857075094,26.81731203,223.84,223.8,31.98]
[1759857075297,20.8,223.82,223.81,10.87647521]
[1759857075522,22.76619625,223.82,223.81,10.87647521]
[1759857076024,1.96619625,223.82,223.81,10.87647521]
[1759857076223,1.96619625,223.83,223.81,11.58647521]
[1759857076427,1.96619625,223.82,223.81,10.87647521]
[1759857076810,6.01844387,223.82,223.8,31.98]
[1759857077022,5.29844387,223.81,223.8,31.98]
[1759857077320,5.29844387,223.81,223.79,0.1]
[1759857077521,1.96619625,223.91,223.81,10.87647521]
[1759857077726,3.3318176,223.9,223.83,10.87647521]
[1759857077904,3.3318176,223.89,223.85,10.87647521]
[1759857078225,24.1318176,223.88,223.86,37.19703372]
[1759857078423,3.3318176,223.87,223.86,48.07350893]
[1759857078622,20.8,223.87,223.82,0.71]
[1759857078812,20.8,223.87,223.79,11.27093949]
[1759857078813,1.96619625,223.83,223.79,0.1]
[1759857079009,1.96619625,223.81,223.79,15.4449475]
[1759857080004,1.96619625,223.82,223.79,16.1549475]
[1759857080211,3.33418539,223.81,223.79,16.1549475]
[1759857080408,1.96619625,223.82,223.79,15.4449475]
[1759857080625,1.96619625,223.83,223.81,10.87647521]
[1759857080817,3.33496927,223.82,223.81,11.58647521]
[1759857082115,3.33496927,223.82,223.81,16.0545508]
[1759857082315,3.33819681,223.82,223.81,16.0545508]
[1759857082709,20.8,223.84,223.81,16.0545508]
[1759857083035,1.96619625,223.91,223.83,10.87647521]
[1759857083208,3.33818831,223.9,223.85,10.87647521]
[1759857083407,3.33818831,223.89,223.86,0.71]
[1759857083630,3.33818831,223.88,223.87,0.71]
[1759857084028,5.30438456,223.88,223.85,10.87647521]
[1759857084333,1.96619625,223.86,223.85,10.87647521]
[1759857084535,5.30438456,223.86,223.85,10.87647521]
[1759857084720,5.30438456,223.86,223.84,32.02]
[1759857084721,6.02438456,223.86,223.84,32.02]
[1759857084927,6.02438456,223.86,223.84,42.89647521]
[1759857084928,3.33818831,223.85,223.84,42.89647521]
[1759857085128,6.02438456,223.85,223.79,0.1]
[1759857085333,1.96619625,223.83,223.81,10.87647521]
[1759857085533,24.13818831,223.82,223.81,10.87647521]
[1759857085909,24.13818831,223.82,223.81,15.3445508]
[1759857086225,3.33818831,223.82,223.81,16.0545508]
[1759857088433,3.05040483,223.95,223.81,49.56511778]
[1759857088616,4.97109663,223.94,223.83,10.87647521]
[1759857088813,3.05040483,223.95,223.85,10.87647521]
[1759857089012,1.96619625,223.93,223.87,10.87647521]
[1759857089214,1.96619625,223.9,223.89,10.87647521]
[1759857089430,0.72,223.9,223.89,43.01647521]
[1759857089637,2.68619625,223.9,223.89,43.01647521]
[1759857090020,5.69109663,223.9,223.89,43.01647521]
[1759857090334,5.69109663,223.9,223.87,43.01647521]
[1759857090538,1.96619625,223.89,223.87,43.01647521]
[1759857090930,1.96619625,223.88,223.87,43.01647521]
[1759857091125,3.72490038,223.91,223.87,43.01647521]
[1759857091432,3.00490038,223.91,223.88,10.87647521]
[1759857091638,1.96619625,223.89,223.88,10.87647521]
[1759857092144,22.76619625,223.89,223.88,10.87647521]
[1759857092923,4.46592141,223.92,223.88,10.87647521]
[1759857093136,1.96619625,223.89,223.88,10.87647521]
[1759857093329,2.68619625,223.89,223.79,11.9807308]
[1759857093520,1.96619625,223.84,223.8,43.01647521]
[1759857093721,1.96619625,223.85,223.81,0.71]
[1759857094441,20.8,223.83,223.8,43.01647521]
[1759857094619,20.8,223.83,223.8,43.72647521]
[1759857094820,5.18684347,223.88,223.8,47.48470706]
[1759857095021,5.18684347,223.88,223.8,43.72647521]
[1759857095022,1.96619625,223.84,223.8,43.72647521]
[1759857095245,1.96619625,223.82,223.8,43.01647521]
[1759857095441,3.00578737,223.84,223.8,43.01647521]
[1759857095648,1.96619625,223.82,223.8,43.01647521]
[1759857096039,3.00578737,223.84,223.8,43.01647521]
[1759857096340,1.96619625,223.82,223.8,43.01647521]
[1759857096947,1.96619625,223.83,223.8,43.72647521]
[1759857097242,20.8,223.84,223.8,43.01647521]
[1759857097243,1.96619625,223.82,223.8,43.01647521]
[1759857097448,1.96619625,223.83,223.8,43.01647521]
[1759857097625,1.96619625,223.85,223.82,10.87647521]
[1759857097818,0.72,223.86,223.82,10.87647521]
[1759857098034,1.96619625,223.87,223.84,10.87647521]
[1759857098238,22.76619625,223.89,223.86,10.87647521]
[1759857098439,3.00491792,223.88,223.87,32.87]
[1759857098645,3.00491792,223.93,223.88,10.87647521]
[1759857098848,3.00491792,223.94,223.89,0.71]
[1759857099033,0.66,223.92,223.91,10.87647521]
[1759857099232,20.8,223.92,223.91,10.87647521]
[1759857099543,3.00392392,223.92,223.91,10.87647521]
[1759857099735,1.96619625,223.93,223.91,10.87647521]
[1759857099932,5.33432875,223.95,223.92,0.71]
[1759857100137,3.00392392,223.97,223.94,10.87647521]
[1759857100336,3.33540033,223.96,223.95,47.50175763]
[1759857101026,3.33540033,223.96,223.95,48.21175763]
[1759857101230,29.63165898,223.96,223.89,43.03647521]
[1759857101552,20.8,223.93,223.89,43.03647521]
[1759857101723,3.33540033,223.92,223.89,43.74647521]
[1759857101926,20.8,223.91,223.89,43.74647521]
[1759857102365,3.33414303,223.9,223.89,43.74647521]
[1759857102661,3.33414303,223.9,223.89,43.03647521]
[1759857102850,24.13414303,223.9,223.89,43.03647521]
[1759857103728,3.33414303,223.9,223.89,43.03647521]
[1759857104047,24.13414303,223.9,223.89,43.03647521]
[1759857104445,20.8,223.9,223.89,48.21295428]
[1759857104649,20.8,223.95,223.89,48.21295428]
[1759857104948,27.13388238,223.94,223.89,48.21295428]
[1759857105128,24.13361211,223.93,223.9,0.71]
[1759857105336,3.33361211,223.92,223.91,43.74647521]
[1759857105549,4.83625865,223.99,223.92,10.87647521]
[1759857105751,20.8,223.96,223.94,10.87647521]
[1759857105950,20.8,223.96,223.95,32.18]
[1759857106245,29.62916012,223.96,223.95,43.05647521]
[1759857106644,32.62834874,223.96,223.93,32.18]
[1759857106841,3.33290147,223.95,223.94,10.87647521]
[1759857107936,11.0333677,223.95,223.89,10.87647521]
[1759857108135,11.0333677,223.94,223.91,10.87647521]
[1759857108353,20.8,223.99,223.95,10.87647521]
[1759857108570,6.32901212,223.98,223.95,43.76647521]
[1759857108864,3.33093548,223.97,223.95,43.05647521]
[1759857109554,3.33093548,223.97,223.95,47.52174859]
[1759857110052,20.8,223.98,223.95,47.52174859]
[1759857110349,3.33034786,223.97,223.95,47.52174859]
[1759857110553,3.33034786,223.97,223.95,43.05647521]
[1759857111554,3.33034786,223.97,223.9,32.16]
[1759857111555,33.62574216,223.96,223.9,32.16]
[1759857111759,7.70046623,223.91,223.89,10.87647521]
[1759857111934,0.66,223.91,223.9,43.03647521]
[1759857112857,20.8,223.96,223.91,10.87647521]
[1759857113164,7.70046623,223.94,223.93,10.87647521]
[1759857113338,3.32995418,223.94,223.93,10.87647521]
[1759857113734,20.8,223.96,223.93,16.05215644]
[1759857113950,24.12938566,223.95,223.94,32.89]
[1759857114161,7.70046623,223.98,223.94,32.89]
[1759857114460,20.8,223.95,223.94,43.76647521]
[1759857114662,20.8,223.95,223.94,43.05647521]
[1759857115755,20.8,223.95,223.94,47.52195703]
[1759857116055,28.50046623,223.99,223.95,10.87647521]
[1759857116229,3.3280167,223.98,223.96,32.16]
[1759857116829,20.8,223.99,223.98,10.87647521]
[1759857117062,13.40272968,224.09,223.99,10.87647521]
[1759857117063,7.70046623,224.03,223.99,10.87647521]
[1759857117235,3.32689584,224.02,224.01,10.87647521]
[1759857117439,24.12689584,224.02,224.01,43.03647521]
[1759857117760,24.12689584,224.02,224.01,47.50056163]
[1759857117968,3.32689584,224.02,224.01,47.50056163]
[1759857118140,7.70046623,224.04,224.01,43.03647521]
[1759857118344,20.8,224.04,224.01,47.50052518]
[1759857118563,7.70046623,224.05,224.01,48.21052518]
[1759857118736,3.32400937,224.04,224.01,48.21052518]
[1759857118937,20.8,224.07,224.01,47.50052518]
[1759857119178,3.32381396,224.06,224.03,10.87647521]
[1759857119364,7.70046623,224.08,224.05,10.87647521]
[1759857119538,11.02255192,224.07,224.06,32.16]
[1759857119941,11.02255192,224.07,224.06,43.03647521]
[1759857120669,3.32208569,224.07,224.06,43.74647521]
[1759857120854,0.2,224.13,224.07,10.87647521]
[1759857121062,3.32183261,224.11,224.09,10.87647521]
[1759857121255,24.84183261,224.11,224.1,43.03647521]
[1759857121459,24.12183261,224.11,224.1,43.03647521]
[1759857122065,24.84183261,224.11,224.1,32.16]
[1759857122275,37.00439334,224.11,224.1,32.16]
[1759857122476,37.00439334,224.11,224.08,32.16]
[1759857122770,20.8,224.06,224.05,43.05647521]
[1759857122949,29.22046623,224.06,223.98,10.87647521]
[1759857123149,3.78849429,224.06,224.0,10.87647521]
[1759857123351,20.8,224.04,224.01,32.18]
[1759857123751,3.06849429,224.02,224.01,43.05647521]
[1759857123949,21.52,224.08,224.01,43.76647521]
[1759857124149,3.06849429,224.02,224.01,48.23056163]
[1759857124854,3.06849429,224.03,224.01,47.52056163]
[1759857125169,7.69567074,224.02,224.01,43.05647521]
[1759857125764,8.41567074,224.02,223.93,15.34215644]
[1759857126068,32.18,224.1,223.88,0.71]
[1759857126069,7.69567074,223.94,223.88,0.71]
[1759857126247,20.8,223.97,223.88,31.42]
[1759857126439,7.69567074,223.89,223.88,31.42]
[1759857126641,7.69567074,223.89,223.88,32.13]
[1759857126855,7.69567074,223.89,223.88,31.42]
[1759857127053,7.69567074,223.89,223.87,4.46687809]
[1759857127054,7.69567074,223.89,223.83,0.71]
[1759857127345,21.52,223.92,223.83,0.71]
[1759857127346,7.69567074,223.87,223.84,32.2]
[1759857127651,7.69567074,223.88,223.85,0.71]
[1759857127862,7.69567074,223.86,223.84,32.2]
[1759857128071,25.98590358,223.92,223.86,10.87647521]
[1759857128248,25.98590358,223.92,223.87,32.2]
[1759857128446,0.72,223.91,223.87,32.2]
[1759857128650,4.46590358,223.92,223.87,32.2]
[1759857128651,0.72,223.9,223.87,32.2]
[1759857129162,0.72,223.93,223.88,10.87647521]
[1759857129466,7.69567074,223.89,223.88,10.87647521]
[1759857130549,7.69567074,223.89,223.82,10.87647521]
[1759857130550,12.88221816,223.89,223.82,10.87647521]
[1759857130755,7.69567074,223.83,223.82,15.34428966]
[1759857130967,7.69567074,223.83,223.82,43.07647521]
[1759857131171,20.8,223.86,223.82,43.07647521]
[1759857131376,7.69567074,223.83,223.82,43.07647521]
[1759857132271,7.69567074,223.83,223.82,47.54429405]
[1759857132663,20.8,223.87,223.82,47.54429405]
[1759857132664,20.8,223.85,223.82,47.54429405]
[1759857132864,7.69567074,223.83,223.82,43.07647521]
[1759857133053,7.69567074,223.83,223.82,47.54434857]
[1759857133771,14.19057584,223.91,223.82,48.25434857]
[1759857133976,7.69567074,223.89,223.84,10.87647521]
[1759857134203,0.72,223.94,223.88,10.87647521]
[1759857134359,7.69567074,223.9,223.89,32.2]
[1759857135165,7.69567074,223.9,223.89,36.66647907]
[1759857135366,7.69567074,223.91,223.9,10.87647521]
[1759857136261,17.65341823,223.97,223.9,10.87647521]
[1759857136474,7.69567074,223.93,223.92,10.87647521]
[1759857138080,8.41567074,223.93,223.92,10.87647521]
[1759857138687,8.41567074,223.93,223.91,32.2]
[1759857138874,8.41567074,223.92,223.91,32.2]
[1759857139084,20.8,223.9,223.88,43.05647521]
[1759857139285,7.69567074,223.89,223.88,10.87647521]
[1759857139659,8.41567074,223.89,223.88,10.87647521]
[1759857140160,7.69567074,223.89,223.88,10.87647521]
[1759857140569,8.41567074,223.89,223.88,10.87647521]
[1759857140764,8.41567074,223.89,223.87,32.18]
[1759857140988,8.41567074,223.88,223.87,32.18]
[1759857141200,8.41567074,223.88,223.81,10.87647521]
[1759857141489,0.72,223.87,223.83,10.87647521]
[1759857141661,7.69567074,223.84,223.83,10.87647521]
[1759857141856,7.69567074,223.84,223.83,43.76647521]
[1759857143185,7.69567074,223.85,223.83,43.76647521]
[1759857143373,7.69567074,223.85,223.84,4.46747676]
[1759857143573,28.49567074,223.87,223.85,10.87647521]
[1759857143882,7.69567074,223.9,223.87,10.87647521]
[1759857144090,20.8,223.9,223.88,32.16]
[1759857144265,8.41567074,223.89,223.88,43.03647521]
[1759857144460,8.41567074,223.89,223.88,32.16]
[1759857144659,8.41567074,223.89,223.86,32.16]
[1759857144859,20.8,223.9,223.86,32.16]
[1759857144860,0.72,223.88,223.87,10.87647521]
[1759857145281,0.72,223.88,223.83,10.87647521]
[1759857145461,0.72,223.87,223.83,10.87647521]
[1759857145862,7.69567074,223.84,223.83,10.87647521]
[1759857146381,8.41567074,223.84,223.79,0.1]
[1759857146568,0.71,223.86,223.81,10.87647521]
[1759857146883,4.46649303,223.89,223.81,10.87647521]
[1759857146884,7.69567074,223.82,223.81,10.87647521]
[1759857147184,7.69567074,223.82,223.8,32.2]
[1759857147390,7.69567074,223.81,223.8,43.07647521]
[1759857147861,20.8,223.83,223.81,10.87647521]
[1759857148063,20.8,223.82,223.81,10.87647521]
[1759857148782,20.8,223.85,223.81,10.87647521]
[1759857148984,7.69567074,223.82,223.81,11.53647521]
[1759857149168,7.69567074,223.83,223.81,11.53647521]
[1759857149374,0.71,223.91,223.85,10.87647521]
[1759857149588,7.69567074,223.86,223.85,43.09647521]
[1759857149778,20.8,223.88,223.85,43.09647521]
[1759857150085,7.69567074,223.86,223.85,43.09647521]
[1759857150864,8.40567074,223.86,223.79,0.1]
[1759857151088,0.71,223.86,223.8,43.09647521]
[1759857151280,7.69567074,223.81,223.8,47.56474971]
[1759857151590,21.51,223.88,223.81,10.87647521]
[1759857151772,7.69567074,223.83,223.82,43.11647521]
[1759857151978,7.69567074,223.85,223.82,43.77647521]
[1759857152174,7.69567074,223.85,223.84,10.87647521]
[1759857152374,7.69567074,223.85,223.84,43.11647521]
[1759857152589,7.69567074,223.85,223.84,43.77647521]
[1759857152780,7.69567074,223.85,223.84,43.11647521]
[1759857153085,7.69567074,223.85,223.84,47.58395197]
[1759857153288,7.69567074,223.85,223.84,43.11647521]
[1759857155498,8.40567074,223.85,223.84,32.24]
[1759857155895,8.40567074,223.85,223.82,32.2]
[1759857156191,7.69567074,223.83,223.82,32.2]
[1759857156385,7.69567074,223.83,223.82,43.73647521]
[1759857156569,7.69567074,223.83,223.82,43.07647521]
[1759857156769,7.69567074,223.84,223.83,10.87647521]
[1759857157489,0.71,223.88,223.83,10.87647521]
[1759857157695,7.69567074,223.84,223.83,43.09647521]
[1759857158083,7.69567074,223.84,223.83,43.75647521]
[1759857158285,7.69567074,223.84,223.83,43.09647521]
[1759857158788,7.69567074,223.84,223.83,48.21413458]
[1759857158993,28.49567074,223.86,223.83,48.21413458]
[1759857159392,28.49567074,223.86,223.83,47.56407571]
[1759857159573,7.69567074,223.84,223.83,47.56407571]
[1759857160579,8.36567074,223.84,223.79,0.1]
[1759857160783,20.8,223.86,223.81,10.87647521]
[1759857160983,28.49567074,223.86,223.83,10.87647521]
[1759857161196,28.49567074,223.86,223.85,10.87647521]
[1759857161393,20.8,223.86,223.85,10.87647521]
[1759857161712,28.49567074,223.86,223.85,10.87647521]
[1759857164223,20.8,223.86,223.85,10.87647521]
[1759857164583,28.49567074,223.86,223.85,10.87647521]
[1759857164784,20.8,223.86,223.85,10.87647521]
[1759857164990,31.6961132,223.86,223.79,0.1]
[1759857165195,20.8,223.81,223.79,0.1]
[1759857165514,7.69567074,223.8,223.79,0.1]
[1759857165712,0.67,223.8,223.79,0.1]
[1759857165912,8.36567074,223.8,223.79,0.1]
[1759857166095,0.67,223.8,223.79,0.1]
[1759857166287,8.36567074,223.8,223.79,0.1]
[1759857166492,7.69567074,223.8,223.79,0.1]
[1759857166906,0.67,223.84,223.79,0.1]
[1759857167109,20.8,223.85,223.79,0.1]
[1759857167110,3.99724018,223.83,223.79,0.1]
[1759857167306,7.69567074,223.8,223.79,0.1]
[1759857167994,7.69567074,223.8,223.79,5.2184749]
[1759857168193,7.69567074,223.8,223.79,0.1]
[1759857168897,20.8,223.81,223.79,0.1]
[1759857169105,25.64479473,223.8,223.79,0.1]
[1759857169494,20.8,223.8,223.79,0.1]
[1759857169713,29.64617154,223.8,223.79,0.1]
[1759857170094,28.97617154,223.8,223.79,0.1]
[1759857170311,8.17617154,223.8,223.79,0.1]
[1759857170709,8.84617154,223.8,223.79,0.1]
[1759857171693,13.31881283,223.8,223.79,0.1]
[1759857171893,16.32089531,223.8,223.79,0.1]
[1759857172501,8.18053759,223.8,223.79,0.1]
[1759857172901,8.85053759,223.8,223.79,0.1]
[1759857173600,8.18053759,223.8,223.79,0.1]
[1759857173801,8.18053759,223.8,223.79,0.75]
[1759857173802,3.33574286,223.8,223.79,0.75]
[1759857174192,0.67,223.86,223.8,10.87647521]
[1759857174416,20.8,223.83,223.8,10.87647521]
[1759857174621,3.3339951,223.82,223.8,11.52647521]
[1759857174810,3.3339951,223.82,223.81,0.65]
[1759857175124,26.59049202,223.93,223.82,10.87647521]
[1759857175298,4.84479473,223.91,223.84,10.87647521]
[1759857175499,3.33353863,223.9,223.87,10.87647521]
[1759857175809,3.33353863,223.89,223.88,43.74647521]
[1759857176011,3.33353863,223.9,223.88,43.74647521]
[1759857176203,3.33353863,223.9,223.89,0.65]
[1759857176402,2.99967993,223.94,223.89,11.52647521]
[1759857176601,3.33262123,223.93,223.91,10.87647521]
[1759857176917,20.8,223.93,223.92,43.07647521]
[1759857177220,3.33237249,223.93,223.92,43.07647521]
[1759857177419,3.33237249,223.95,223.92,43.07647521]
[1759857177619,5.32880625,223.96,223.92,43.07647521]
[1759857177620,8.17716722,223.94,223.92,43.07647521]
[1759857177806,3.33153066,223.93,223.92,43.07647521]
[1759857178119,24.13153066,223.93,223.92,43.07647521]
[1759857178320,28.97632539,223.93,223.92,43.07647521]
[1759857179024,3.33153066,223.93,223.92,47.54235588]
[1759857179413,3.33153066,223.93,223.83,0.71]
[1759857179414,6.99937318,223.93,223.83,0.71]
[1759857179720,4.84479473,223.85,223.84,13.34]
[1759857180301,4.84479473,223.85,223.79,0.1]
[1759857180302,13.31358332,223.85,223.79,10.97647521]
[1759857180530,4.84479473,223.83,223.82,32.18]
[1759857180724,20.8,223.85,223.82,32.89]
[1759857181028,4.84479473,223.83,223.82,43.05647521]
[1759857181420,20.8,223.85,223.82,43.05647521]
[1759857181936,20.8,223.9,223.83,11.58647521]
[1759857182105,4.84479473,223.85,223.83,11.58647521]
[1759857183223,5.13546644,223.95,223.85,10.87647521]
[1759857183405,4.84479473,223.9,223.87,10.87647521]
[1759857183931,3.33214067,223.89,223.87,10.87647521]
[1759857184134,20.8,223.91,223.86,36.62697089]
[1759857184135,4.84479473,223.88,223.86,32.16]
[1759857184425,4.00256759,223.87,223.86,32.16]
[1759857185226,8.84736232,223.87,223.86,32.16]
[1759857185422,8.84736232,223.87,223.83,32.16]
[1759857185631,4.84479473,223.84,223.83,32.16]
[1759857186808,4.84479473,223.84,223.82,10.87647521]
[1759857187018,0.67,223.83,223.8,10.87647521]
[1759857187316,4.84479473,223.81,223.79,32.24]
[1759857187802,0.67,223.86,223.8,10.87647521]
[1759857187997,4.84479473,223.83,223.8,11.58647521]
[1759857188223,4.84479473,223.81,223.8,10.87647521]
[1759857188631,4.84479473,223.81,223.79,32.24]
[1759857188928,4.84479473,223.8,223.79,43.82647521]
[1759857189135,4.84479473,223.82,223.8,10.87647521]
[1759857189926,0.67,223.86,223.8,11.58647521]
[1759857190125,4.84479473,223.81,223.8,10.87647521]
[1759857190330,4.84479473,223.81,223.79,32.24]
[1759857190829,20.8,223.83,223.79,32.24]
[1759857191025,4.84479473,223.8,223.79,43.82647521]
[1759857191529,4.84479473,223.8,223.79,0.1]
[1759857191712,24.5549049,223.92,223.79,32.91]
[1759857191912,4.84479473,223.82,223.8,10.87647521]
[1759857192302,9.3126881,223.82,223.79,32.2]
[1759857192517,20.8,223.83,223.8,10.87647521]
[1759857192719,4.84479473,223.81,223.8,10.87647521]
[1759857192927,20.8,223.83,223.8,10.87647521]
[1759857193113,4.84479473,223.81,223.8,10.87647521]
[1759857193709,4.84479473,223.81,223.8,11.58647521]
[1759857194409,4.84479473,223.81,223.8,10.87647521]
[1759857194732,20.8,223.83,223.8,10.87647521]
[1759857194933,11.16648398,223.89,223.82,10.87647521]
[1759857195138,3.7549049,223.9,223.83,32.08]
[1759857195139,13.4786047,223.88,223.83,32.08]
[1759857195304,4.84479473,223.85,223.83,32.79]
[1759857195526,3.33404005,223.84,223.83,43.66647521]
[1759857195927,7.84496234,223.87,223.84,10.87647521]
[1759857196142,3.33369931,223.86,223.85,11.58647521]
[1759857196424,4.84479473,223.88,223.86,10.87647521]
[1759857196644,4.84479473,223.88,223.87,42.95647521]
[1759857196847,7.84496234,223.9,223.88,10.87647521]
[1759857197026,3.33326178,223.89,223.88,10.87647521]
[1759857197556,4.84479473,223.91,223.88,10.87647521]
[1759857197759,3.33281623,223.9,223.88,10.87647521]
[1759857197930,3.33281623,223.9,223.88,11.58647521]
[1759857198127,3.33281623,223.9,223.88,16.05311321]
[1759857198730,4.84479473,223.94,223.9,10.87647521]
[1759857199063,2.99858084,223.96,223.92,10.87647521]
[1759857199240,2.99858084,223.99,223.94,10.87647521]
[1759857199428,4.84479473,223.97,223.95,32.1]
[1759857199627,6.00701209,223.96,223.95,42.97647521]
[1759857199848,4.84479473,223.97,223.95,42.97647521]
[1759857200529,20.8,223.99,223.96,10.87647521]
[1759857200728,4.84479473,223.97,223.96,10.87647521]
[1759857201123,20.8,223.99,223.96,10.87647521]
[1759857201340,4.84479473,223.97,223.96,10.87647521]
[1759857202261,4.84479473,223.98,223.96,15.34150407]
[1759857202466,17.78683062,224.01,223.97,42.93647521]
[1759857202645,4.84479473,223.98,223.97,42.93647521]